Workbook

Sheet Cover
A2: Excel Basics 12: Comprehensive Formula Lesson of Formula Types & Formula Elements (12 Examples)
E4: Office 2016 Video #24
C5: Number Formulas?
C6: Text Formulas?
C7: Logical Formulas?
C9: 12 Amazing Formulas
B10: 1 | C10: ='FT & FE'!B17 -> Goal: Add calls made a service center last week. | D10: ='FT & FE (an)'!D30 -> =SUM(C23:C29) | N10: ="Formula "&TEXT(B10,"00")&": "&C10&": "&D10 -> Formula 01: Goal: Add calls made a service center last week.: =SUM(C23:C29)
B11: 2 | C11: ='FT & FE'!B32 -> Goal: Calculate Monthly Insurance Expense. | D11: ='FT & FE (an)'!D38 -> =C37/12 | N11: ="Formula "&TEXT(B11,"00")&": "&C11&": "&D11 -> Formula 02: Goal: Calculate Monthly Insurance Expense.: =C37/12
B12: 3 | C12: ='FT & FE'!B40 -> Goal: Calculate Deduction for Each Employee. | D12: ='FT & FE (an)'!E46 -> =ROUND(C46*$F$46,2) | N12: Formula 03: Goal: Calculate Deduction for Each Employee.: =ROUND(C46*$F$46,2)
B13: 4 | C13: ='FT & FE'!B52 -> Goal: Calculate Cost of Goods Sold (COGS) in Accounting | D13: ='FT & FE (an)'!G58 -> =(C58-D58)*E58 | N13: Formula 04: Goal: Calculate Cost of Goods Sold (COGS) in Accounting: =(C58-D58)*E58
B14: 5 | C14: ='FT & FE'!B64 -> Goal: Join "Text " and an Item Number into One Cell. | D14: ='FT & FE (an)'!E70 -> ="Item # "&C70 | N14: Formula 05: Goal: Join "Text " and an Item Number into One Cell.: ="Item # "&C70
B15: 6 | C15: ='FT & FE'!B76 -> Goal: Join First & Last Names into One Cell. | D15: ='FT & FE (an)'!F82 -> =C82&", "&B82 | N15: Formula 06: Goal: Join First & Last Names into One Cell.: =C82&", "&B82
B16: 7 | C16: ='FT & FE'!B90 -> Goal: Extract State Abbreviation using the RIGHT Function | D16: ='FT & FE (an)'!D96 -> =RIGHT(B96,2) | N16: Formula 07: Goal: Extract State Abbreviation using the RIGHT Function: =RIGHT(B96,2)
B17: 8 | C17: ='FT & FE'!B102 -> Goal: Extract Product Number using the LEFT Function | D17: ='FT & FE (an)'!D108 -> =LEFT(B108,6) | N17: Formula 08: Goal: Extract Product Number using the LEFT Function: =LEFT(B108,6)
B18: 9 | C18: ='FT & FE'!B115 -> Goal: Determine If Debits = Credits | D18: ='FT & FE (an)'!F127 -> =B127=C127 | N18: Formula 09: Goal: Determine If Debits = Credits: =B127=C127
B19: 10 | C19: ='FT & FE'!B129 -> Goal: Determine If Employee Gets a Bonus | D19: ='FT & FE (an)'!E135 -> =C135>=$F$135 | N19: Formula 10: Goal: Determine If Employee Gets a Bonus: =C135>=$F$135
B20: 11 | C20: ='FT & FE'!B142 -> Goal: Count how many of each product we sold | D20: ='FT & FE (an)'!D156 -> =COUNTIFS($B$148:$B$153,B156) | N20: Formula 11: Goal: Count how many of each product we sold: =COUNTIFS($B$148:$B$153,B156)
B21: 12 | C21: ='FT & FE'!B160 -> Goal: Formula to determine whether we need to reorder? | D21: ='FT & FE (an)'!F166 -> =$D$173>B166-C166 | N21: Formula 12: Goal: Formula to determine whether we need to reorder?: =$D$173>B166-C166
B22: 13 | C22: ='FT & FE (an)'!B176 -> Goal: Calculate Net Income | D22: ='FT & FE (an)'!D186 -> =C181-SUM(C182:C185) | N22: Formula 13: Goal: Calculate Net Income: =C181-SUM(C182:C185)

Sheet Golden

Sheet FT & FE
B1: Formula Types:
B2: 1) Number formulas that deliver a single number answers such as a tax deduction amount or a budgetary expense amount.
B3: 2) Text formulas that deliver a text item such as a name or category.
B4: 3) Logical formulas (Boolean Formulas) deliver a TRUE or FALSE.
B6: Formula Elements:
B7: 1) Equal sign, =
B8: 2) Cell references, like A1, $A$1, A1:A10, $A$1:$A$10
B9: 3) Math operators, -, +, /, *, ^, and ( )
B10: 4) Numbers (if they won’t change), like 12 months
B11: 5) Built-in Functions, like SUM and ROUND
B12: 6) Join operator: Ampersand (&), like First & Last Name
B13: 7) Text within quotation marks, like ", "
B14: 8) Comparative operators, >, <, >=, <=, =, <>, like: Your Sales >= Hurdle
A17: Ex 1 | B17: Goal: Add calls made a service center last week.
B18: Type of Formula: Number Formula.
B19: Formula Elements: Equal Sign, Built-in Function,
B20: Range of Cells
B22: Day | C22: Calls
B23: 2017-10-30 | C23: 671
B24: 2017-10-31 | C24: 374
B25: 2017-11-01 | C25: 586
B26: 2017-11-02 | C26: 637
B27: 2017-11-03 | C27: 1007
B28: 2017-11-04 | C28: 549
B29: 2017-11-05 | C29: 556
B30: Total
A32: Ex 2 | B32: Goal: Calculate Monthly Insurance Expense. | G32: Math Operators.
B33: Type of Formula: Number Formula. | G33: + | H33: Adding.
B34: Formula Elements: Equal Sign, Cell Reference, | G34: - | H34: Subtracting or Negation.
B35: Math Operator, Number. | G35: * | H35: Multiplying.
G36: / | H36: Dividing.
B37: Annual Insurance | C37: 13500 | E37: ** 12 months in year can not change | G37: ^ | H37: Raising to an exponent.
B38: Monthly Allocation | E38: We are not violating Excel's Golden Rule | G38: ( ) | H38: Parentheses.
A40: Ex 3 | B40: Goal: Calculate Deduction for Each Employee.
B41: Type of Formula: Number Formula.
B42: Formula Elements: Equal Sign, Built-In Function, Relative Cell Reference,
B43: Math Operator, Absolute Cell Reference, Number
B45: Employee | C45: Gross Pay | D45: Deduction | F45: Tax Rate
B46: Sioux | C46: 2830.34 | F46: 0.1675
B47: Chin | C47: 2239.93
B48: Tyrone | C48: 2953.98 | F48: ** 2 for penny will not change
B49: Gigi | C49: 2926.74 | F49: We are not violating Excel's Golden Rule
C50: Total
A52: Ex 4 | B52: Goal: Calculate Cost of Goods Sold (COGS) in Accounting
B53: Type of Formula: Number Formula.
B54: Formula Elements: Equal Sign, Parenthesis, Relative Cell Reference, Math Operator,
B55: Relative Cell Reference, Parenthesis, Math Operator, Relative Cell Reference
B57: Product | C57: Beginning Quantity | D57: End Quantity | E57: Value Each | F57: COGS
B58: Aspen | C58: 114 | D58: 45 | E58: 10
B59: Quad | C59: 146 | D59: 117 | E59: 20
B60: Carlota | C60: 108 | D60: 102 | E60: 15 | H60: Remember Order of Operations in Math:
B61: Bellen | C61: 61 | D61: 47 | E61: 10 | H61: 1) Parentheses
B62: Sunset | C62: 54 | D62: 51 | E62: 12 | H62: 2) Exponents
H63: 3) Multiply & Divide, Left to Right
A64: Ex 5 | B64: Goal: Join "Text " and an Item Number into One Cell. | H64: 4) Adding and Subtracting, Left to Right
B65: Type of Formula: Text Formula.
B66: Formula Elements: Equal Sign, Text in Double Quotes,
B67: Join Operator (&), Relative Cell Reference
B69: Product | C69: Item Number | D69: Item # & Number | F69: Join Operator = & = Ampersand or And Symbol (Keyboard = Shift + 7)
B70: Aspen | C70: 517231 | F70: Join Operator allows to join to items together into one cell, like joining First and Last Name
B71: Quad | C71: 469890 | F71: Formula like; ="Item # "&C43 joins text in double quotes and a number from a cell
B72: Carlota | C72: 162451 | F72: Anytime you have to put text into a formula, you must use Double Quotes
B73: Bellen | C73: 114541 | F73: "Item # " will not change
B74: Sunset | C74: 832593
A76: Ex 6 | B76: Goal: Join First & Last Names into One Cell.
B77: Type of Formula: Text Formula.
B78: Formula Elements: Equal Sign, Relative Cell Reference
B79: Join Operator, Text In Double Quotes, Join Operator, Relative Cell Reference
B81: First | C81: Last | D81: Join | E81: Last, First
B82: Jimmy | C82: Garza | G82: "Text in Double Quotes" will not change
B83: Emma | C83: Petrov | G83: We are not violating Excel's Golden Rule
B84: Rolando | C84: Robbins
B85: Abdi | C85: Amari
B86: ShelaDown | C86: Cohen
B87: Sioux | C87: Radcoolinator
B88: Miki | C88: Ito
A90: Ex 7 | B90: Goal: Extract State Abbreviation using the RIGHT Function
B91: Type of Formula: Text Formula.
B92: Formula Elements: Equal Sign, Built-in Function,
B93: Relative Cell Reference, Number
B95: Product Code | C95: State Abbreviation | E95: ** 2 for state abbreviation length will not change
B96: 517231 Aspen, CO | E96: We are not violating Excel's Golden Rule
B97: 469890 Quad, CA
B98: 162451 Carlota, WA
B99: 114541 Bellen, CA
B100: 832593 Sunset, CO
A102: Ex8 | B102: Goal: Extract Product Number using the LEFT Function
B103: Type of Formula: Text Formula.
B104: Formula Elements: Equal Sign, Built-in Function,
B105: Relative Cell Reference, Number
B107: Product Code | C107: Product Number
B108: 517231, Aspen | E108: ** 6 for product code length will not change
B109: 469890, Quad | E109: We are not violating Excel's Golden Rule
B110: 162451, Carlota
B111: 114541, Bellen
B112: 832593, Sunset
A115: Ex 9 | B115: Goal: Determine If Debits = Credits
B116: Type of Formula: Logical Formula.
B117: Formula Elements: Equal sign, Cell Reference,
B118: Equal sign (as Comparative Operator), Cell Reference
G119: Comparative Operators.
B120: Debit (DR) | C120: Credit (CR) | G120: = | H120: Equal: are two things equal?
B121: 35.74 | C121: 35.74 | G121: <> | H121: Not: are two things not equal? Type less than symbol, then greater than symbol.
B122: 73.61 | C122: 73.61 | G122: > | H122: Greater than: is the thing on the left greater than the thing on the right?
B123: 113.08 | C123: 113.08 | G123: >= | H123: Greater than or equal to: is the thing on the left greater than or equal to the thing on the right?
B124: 100.49 | C124: 100.5 | G124: < | H124: Less than: is the thing on the left less than the thing on the right?
B125: 17.7 | C125: 17.7 | G125: <= | H125: Less than or equal to: is the thing on the left less than or equal to the thing on the right?
B126: 107.38 | C126: 107.38 | E126: In Balance?
B127: =SUM(B121:B126) -> 448 | C127: 448.01
A129: Ex10 | B129: Goal: Determine If Employee Gets a Bonus
B130: Type of Formula: Logical Formula.
B131: Formula Elements: Equal sign, Relative Cell Reference,
B132: Comparative Operator, Absolute Cell Reference
B134: Employee | C134: Sales | D134: Do they Get Bonus? | F134: Hurdle to Get Bonus
B135: Emma Petrov | C135: 55000 | F135: 55000
B136: Rolando Robbins | C136: 41197.98
B137: Abdi Amari | C137: 74558.65 | F137: Comparative Operators.
B138: ShelaDown Cohen | C138: 53741.33 | F138: = | G138: Equal: are two things equal?
B139: Sioux Radcoolinator | C139: 37251.06 | F139: <> | G139: Not: are two things not equal? Type less than symbol, then greater than symbol.
B140: Miki Ito | C140: 54999.99 | F140: > | G140: Greater than: is the thing on the left greater than the thing on the right?
F141: >= | G141: Greater than or equal to: is the thing on the left greater than or equal to the thing on the right?
A142: Ex11 | B142: Goal: Count how many of each product we sold | F142: < | G142: Less than: is the thing on the left less than the thing on the right?
B143: Type of Formula: Number Formula. | F143: <= | G143: Less than or equal to: is the thing on the left less than or equal to the thing on the right?
B144: Formula Elements: Equal Sign, Built-in Function, Absolute Range of Cells,
B145: Relative Cell Reference | F145: ≥
F146: ≤
B147: Product | C147: Sales
B148: Quad | C148: 43
B149: Sunset | C149: 23
B150: Sunset | C150: 23
B151: Quad | C151: 43
B152: Aspen | C152: 19.95
B153: Quad | C153: 43
B155: Product | C155: Count
B156: Aspen
B157: Quad
B158: Sunset
A160: Ex12 | B160: Goal: Formula to determine whether we need to reorder? | G160: 1 | H160: Parenthesis ( )
B161: Type of Formula: Logical Formula. | G161: 2 | H161: Reference Operators: colon, comma
B162: Formula Elements: Equal Sign, Absolute Cell Reference, Comparative Operator, | H162: Example of colon in range of cells: =SUM(A1:A4)
B163: Relative Cell Reference, Math Operator, Relative Cell Reference | H163: Example of comma (union): =SUM(E10:G10,E14:G14)
G164: 3 | H164: Negation (-)
B165: Beginning Quantity | C165: Units Sold | D165: On Hand Units | E165: Do we need to Re-order? | H165: Example: = -2^4 = 16
B166: 114 | C166: 45 | D166: =B166-C166 -> 69 | H166: Example: = -(2^4) = -16
B167: 146 | C167: 121 | D167: =B167-C167 -> 25 | G167: 4 | H167: Converts % (1% to .01)
B168: 108 | C168: 102 | D168: 6 | G168: 5 | H168: Exponents (^)
B169: 61 | C169: 21 | D169: 40 | H169: Example: 3^2 = 9
B170: 54 | C170: 51 | D170: 3 | G170: 6 | H170: Multiplication (*) and Division (/), left to right
G171: 7 | H171: Adding (+) and Subtracting (-), left to right
D172: Reorder Hurdle | G172: 8 | H172: Ampersand (&)
D173: 25 | G173: 9 | H173: Comparative symbols: =, <>, >=, <=, <, >
D174: ="** If we have "&D173&" or more, we do not need to re-order." -> ** If we have 25 or more, we do not need to re-order.
E175: ** 24 or less, we need to re-order
A176: Ex13 | B176: Goal: Calculate Net Income | F176: =$D$173>B166-C166
B177: Type of Formula: Number Formula. | F177: =B166-C166<$D$173
B178: Formula Elements: Equal Sign, Cell Reference, Built-in Function,
B179: Range of Cells
B181: Revenue | C181: 125700
B182: Rent Expense | C182: 12500
B183: Wage Expense | C183: 22000
B184: Operation Expense | C184: 11500
B185: COGS | C185: 69570
B186: Net Income

Sheet FT & FE (an)
B1: Formula Types:
B2: 1) Number formulas that deliver a single number answers such as a tax deduction amount or a budgetary expense amount.
B3: 2) Text formulas that deliver a text item such as a name or category.
B4: 3) Logical formulas (Boolean Formulas) deliver a TRUE or FALSE.
B6: Formula Elements:
B7: 1) Equal sign, =
B8: 2) Cell references, like A1, $A$1, A1:A10, $A$1:$A$10
B9: 3) Math operators, -, +, /, *, ^, and ( )
B10: 4) Numbers (if they won’t change), like 12 months
B11: 5) Built-in Functions, like SUM and ROUND
B12: 6) Join operator: Ampersand (&), like First & Last Name
B13: 7) Text within quotation marks, like ", "
B14: 8) Comparative operators, >, <, >=, <=, =, <>, like: Your Sales >= Hurdle
A17: Ex 1 | B17: Goal: Add calls made a service center last week.
B18: Type of Formula: Number Formula.
B19: Formula Elements: Equal Sign, Built-in Function,
B20: Range of Cells
B22: Day | C22: Calls
B23: 2017-10-30 | C23: 671
B24: 2017-10-31 | C24: 374
B25: 2017-11-01 | C25: 586
B26: 2017-11-02 | C26: 637
B27: 2017-11-03 | C27: 1007
B28: 2017-11-04 | C28: 549
B29: 2017-11-05 | C29: 556
B30: Total | C30: =SUM(C23:C29) -> 4380 | D30: =IF(_xlfn.ISFORMULA(C30),_xlfn.FORMULATEXT(C30),"") -> =SUM(C23:C29)
A32: Ex 2 | B32: Goal: Calculate Monthly Insurance Expense. | G32: Math Operators.
B33: Type of Formula: Number Formula. | G33: + | H33: Adding.
B34: Formula Elements: Equal Sign, Cell Reference, | G34: - | H34: Subtracting or Negation.
B35: Math Operator, Number. | G35: * | H35: Multiplying.
G36: / | H36: Dividing.
B37: Annual Insurance | C37: 13500 | E37: ** 12 months in year can not change | G37: ^ | H37: Raising to an exponent.
B38: Monthly Allocation | C38: =C37/12 -> 1125 | D38: =IF(_xlfn.ISFORMULA(C38),_xlfn.FORMULATEXT(C38),"") -> =C37/12 | E38: We are not violating Excel's Golden Rule | G38: ( ) | H38: Parentheses.
A40: Ex 3 | B40: Goal: Calculate Deduction for Each Employee.
B41: Type of Formula: Number Formula.
B42: Formula Elements: Equal Sign, Built-In Function, Relative Cell Reference,
B43: Math Operator, Absolute Cell Reference, Number
B45: Employee | C45: Gross Pay | D45: Deduction | F45: Tax Rate
B46: Sioux | C46: 2830.34 | D46: =ROUND(C46*$F$46,2) -> 474.08 | E46: =IF(_xlfn.ISFORMULA(D46),_xlfn.FORMULATEXT(D46),"") -> =ROUND(C46*$F$46,2) | F46: 0.1675
B47: Chin | C47: 2239.93 | D47: =ROUND(C47*$F$46,2) -> 375.19
B48: Tyrone | C48: 2953.98 | D48: 494.79 | F48: ** 2 for penny will not change
B49: Gigi | C49: 2926.74 | D49: =ROUND(C49*$F$46,2) -> 490.23 | F49: We are not violating Excel's Golden Rule
C50: Total | D50: =SUM(D46:D49) -> 1834.29
A52: Ex 4 | B52: Goal: Calculate Cost of Goods Sold (COGS) in Accounting
B53: Type of Formula: Number Formula.
B54: Formula Elements: Equal Sign, Parenthesis, Relative Cell Reference, Math Operator,
B55: Relative Cell Reference, Parenthesis, Math Operator, Relative Cell Reference
B57: Product | C57: Beginning Quantity | D57: End Quantity | E57: Value Each | F57: COGS
B58: Aspen | C58: 114 | D58: 45 | E58: 10 | F58: =(C58-D58)*E58 -> 690 | G58: =IF(_xlfn.ISFORMULA(F58),_xlfn.FORMULATEXT(F58),"") -> =(C58-D58)*E58
B59: Quad | C59: 146 | D59: 117 | E59: 20 | F59: =(C59-D59)*E59 -> 580
B60: Carlota | C60: 108 | D60: 102 | E60: 15 | F60: 90 | H60: Remember Order of Operations in Math:
B61: Bellen | C61: 61 | D61: 47 | E61: 10 | F61: 140 | H61: 1) Parentheses
B62: Sunset | C62: 54 | D62: 51 | E62: 12 | F62: 36 | H62: 2) Exponents
H63: 3) Multiply & Divide, Left to Right
A64: Ex 5 | B64: Goal: Join "Text " and an Item Number into One Cell. | H64: 4) Adding and Subtracting, Left to Right
B65: Type of Formula: Text Formula.
B66: Formula Elements: Equal Sign, Text in Double Quotes,
B67: Join Operator (&), Relative Cell Reference
B69: Product | C69: Item Number | D69: Item # & Number | F69: Join Operator = & = Ampersand or And Symbol (Keyboard = Shift + 7)
B70: Aspen | C70: 517231 | D70: ="Item # "&C70 -> Item # 517231 | E70: =IF(_xlfn.ISFORMULA(D70),_xlfn.FORMULATEXT(D70),"") -> ="Item # "&C70 | F70: Join Operator allows to join to items together into one cell, like joining First and Last Name
B71: Quad | C71: 469890 | D71: ="Item # "&C71 -> Item # 469890 | F71: Formula like; ="Item # "&C43 joins text in double quotes and a number from a cell
B72: Carlota | C72: 162451 | D72: Item # 162451 | F72: Anytime you have to put text into a formula, you must use Double Quotes
B73: Bellen | C73: 114541 | D73: Item # 114541 | F73: "Item # " will not change
B74: Sunset | C74: 832593 | D74: ="Item # "&C74 -> Item # 832593
A76: Ex 6 | B76: Goal: Join First & Last Names into One Cell.
B77: Type of Formula: Text Formula.
B78: Formula Elements: Equal Sign, Relative Cell Reference
B79: Join Operator, Text In Double Quotes, Join Operator, Relative Cell Reference
B81: First | C81: Last | D81: Join | E81: Last, First
B82: Jimmy | C82: Garza | D82: =B82&" "&C82 -> Jimmy Garza | E82: =C82&", "&B82 -> Garza, Jimmy | F82: =IF(_xlfn.ISFORMULA(E82),_xlfn.FORMULATEXT(E82),"") -> =C82&", "&B82 | G82: "Text in Double Quotes" will not change
B83: Emma | C83: Petrov | D83: =B83&" "&C83 -> Emma Petrov | E83: =C83&", "&B83 -> Petrov, Emma | G83: We are not violating Excel's Golden Rule
B84: Rolando | C84: Robbins | D84: Rolando Robbins | E84: Robbins, Rolando
B85: Abdi | C85: Amari | D85: Abdi Amari | E85: Amari, Abdi
B86: ShelaDown | C86: Cohen | D86: ShelaDown Cohen | E86: Cohen, ShelaDown
B87: Sioux | C87: Radcoolinator | D87: Sioux Radcoolinator | E87: Radcoolinator, Sioux
B88: Miki | C88: Ito | D88: Miki Ito | E88: =C88&", "&B88 -> Ito, Miki
A90: Ex 7 | B90: Goal: Extract State Abbreviation using the RIGHT Function
B91: Type of Formula: Text Formula.
B92: Formula Elements: Equal Sign, Built-in Function,
B93: Relative Cell Reference, Number
B95: Product Code | C95: State Abbreviation | E95: ** 2 for state abbreviation length will not change
B96: 517231 Aspen, CO | C96: =RIGHT(B96,2) -> CO | D96: =IF(_xlfn.ISFORMULA(C96),_xlfn.FORMULATEXT(C96),"") -> =RIGHT(B96,2) | E96: We are not violating Excel's Golden Rule
B97: 469890 Quad, CA | C97: =RIGHT(B97,2) -> CA
B98: 162451 Carlota, WA | C98: WA
B99: 114541 Bellen, CA | C99: CA
B100: 832593 Sunset, CO | C100: =RIGHT(B100,2) -> CO
A102: Ex8 | B102: Goal: Extract Product Number using the LEFT Function
B103: Type of Formula: Text Formula.
B104: Formula Elements: Equal Sign, Built-in Function,
B105: Relative Cell Reference, Number
B107: Product Code | C107: Product Number
B108: 517231, Aspen | C108: =LEFT(B108,6) -> 517231 | D108: =IF(_xlfn.ISFORMULA(C108),_xlfn.FORMULATEXT(C108),"") -> =LEFT(B108,6) | E108: ** 6 for product code length will not change
B109: 469890, Quad | C109: =LEFT(B109,6) -> 469890 | E109: We are not violating Excel's Golden Rule
B110: 162451, Carlota | C110: 162451
B111: 114541, Bellen | C111: 114541
B112: 832593, Sunset | C112: 832593
A115: Ex 9 | B115: Goal: Determine If Debits = Credits
B116: Type of Formula: Logical Formula.
B117: Formula Elements: Equal sign, Cell Reference,
B118: Equal sign (as Comparative Operator), Cell Reference
G119: Comparative Operators.
B120: Debit (DR) | C120: Credit (CR) | G120: = | H120: Equal: are two things equal?
B121: 35.74 | C121: 35.74 | G121: <> | H121: Not: are two things not equal? Type less than symbol, then greater than symbol.
B122: 73.61 | C122: 73.61 | G122: > | H122: Greater than: is the thing on the left greater than the thing on the right?
B123: 113.08 | C123: 113.08 | G123: >= | H123: Greater than or equal to: is the thing on the left greater than or equal to the thing on the right?
B124: 100.5 | C124: 100.5 | G124: < | H124: Less than: is the thing on the left less than the thing on the right?
B125: 17.7 | C125: 17.7 | G125: <= | H125: Less than or equal to: is the thing on the left less than or equal to the thing on the right?
B126: 107.38 | C126: 107.38 | E126: In Balance?
B127: =SUM(B121:B126) -> 448.01 | C127: 448.01 | E127: =B127=C127 -> TRUE | F127: =IF(_xlfn.ISFORMULA(E127),_xlfn.FORMULATEXT(E127),"") -> =B127=C127
A129: Ex10 | B129: Goal: Determine If Employee Gets a Bonus
B130: Type of Formula: Logical Formula.
B131: Formula Elements: Equal sign, Relative Cell Reference,
B132: Comparative Operator, Absolute Cell Reference
B134: Employee | C134: Sales | D134: Do they Get Bonus? | F134: Hurdle to Get Bonus
B135: Emma Petrov | C135: 55000 | D135: =C135>=$F$135 -> TRUE | E135: =IF(_xlfn.ISFORMULA(D135),_xlfn.FORMULATEXT(D135),"") -> =C135>=$F$135 | F135: 55000
B136: Rolando Robbins | C136: 41197.98 | D136: =C136>=$F$135 -> FALSE
B137: Abdi Amari | C137: 74558.65 | D137: TRUE | F137: Comparative Operators.
B138: ShelaDown Cohen | C138: 53741.33 | D138: FALSE | F138: = | G138: Equal: are two things equal?
B139: Sioux Radcoolinator | C139: 37251.06 | D139: FALSE | F139: <> | G139: Not: are two things not equal? Type less than symbol, then greater than symbol.
B140: Miki Ito | C140: 54999.99 | D140: FALSE | F140: > | G140: Greater than: is the thing on the left greater than the thing on the right?
F141: >= | G141: Greater than or equal to: is the thing on the left greater than or equal to the thing on the right?
A142: Ex11 | B142: Goal: Count how many of each product we sold | F142: < | G142: Less than: is the thing on the left less than the thing on the right?
B143: Type of Formula: Number Formula. | F143: <= | G143: Less than or equal to: is the thing on the left less than or equal to the thing on the right?
B144: Formula Elements: Equal Sign, Built-in Function, Absolute Range of Cells,
B145: Relative Cell Reference | F145: ≥
F146: ≤
B147: Product | C147: Sales
B148: Quad | C148: 43
B149: Sunset | C149: 23
B150: Sunset | C150: 23
B151: Quad | C151: 43
B152: Aspen | C152: 19.95
B153: Quad | C153: 43
B155: Product | C155: Count
B156: Aspen | C156: =COUNTIFS($B$148:$B$153,B156) -> 1 | D156: =IF(_xlfn.ISFORMULA(C156),_xlfn.FORMULATEXT(C156),"") -> =COUNTIFS($B$148:$B$153,B156)
B157: Quad | C157: =COUNTIFS($B$148:$B$153,B157) -> 3
B158: Sunset | C158: 2
A160: Ex12 | B160: Goal: Formula to determine whether we need to reorder? | G160: 1 | H160: Parenthesis ( )
B161: Type of Formula: Logical Formula. | G161: 2 | H161: Reference Operators: colon, comma
B162: Formula Elements: Equal Sign, Absolute Cell Reference, Comparative Operator, | H162: Example of colon in range of cells: =SUM(A1:A4)
B163: Relative Cell Reference, Math Operator, Relative Cell Reference | H163: Example of comma (union): =SUM(E10:G10,E14:G14)
G164: 3 | H164: Negation (-)
B165: Beginning Quantity | C165: Units Sold | D165: On Hand Units | E165: Do we need to Re-order? | H165: Example: = -2^4 = 16
B166: 114 | C166: 45 | D166: =B166-C166 -> 69 | E166: =$D$173>B166-C166 -> FALSE | F166: =IF(_xlfn.ISFORMULA(E166),_xlfn.FORMULATEXT(E166),"") -> =$D$173>B166-C166 | H166: Example: = -(2^4) = -16
B167: 146 | C167: 121 | D167: =B167-C167 -> 25 | E167: =$D$173>B167-C167 -> FALSE | G167: 4 | H167: Converts % (1% to .01)
B168: 108 | C168: 102 | D168: 6 | E168: TRUE | G168: 5 | H168: Exponents (^)
B169: 61 | C169: 21 | D169: 40 | E169: FALSE | H169: Example: 3^2 = 9
B170: 54 | C170: 51 | D170: 3 | E170: =$D$173>B170-C170 -> TRUE | G170: 6 | H170: Multiplication (*) and Division (/), left to right
G171: 7 | H171: Adding (+) and Subtracting (-), left to right
D172: Reorder Hurdle | G172: 8 | H172: Ampersand (&)
D173: 25 | G173: 9 | H173: Comparative symbols: =, <>, >=, <=, <, >
D174: ="** If we have "&D173&" or more, we do not need to re-order." -> ** If we have 25 or more, we do not need to re-order.
E175: ** 24 or less, we need to re-order
A176: Ex13 | B176: Goal: Calculate Net Income | F176: =$D$173>B166-C166
B177: Type of Formula: Number Formula. | F177: =B166-C166<$D$173
B178: Formula Elements: Equal Sign, Cell Reference, Built-in Function,
B179: Range of Cells
B181: Revenue | C181: 125700
B182: Rent Expense | C182: 12500
B183: Wage Expense | C183: 22000
B184: Operation Expense | C184: 11500
B185: COGS | C185: 69570
B186: Net Income | C186: =C181-SUM(C182:C185) -> 10130 | D186: =IF(_xlfn.ISFORMULA(C186),_xlfn.FORMULATEXT(C186),"") -> =C181-SUM(C182:C185)

Sheet HW===>>

Sheet HW(1)
A1: Goal: Calculate Cost of Goods Sold (COGS) in Accounting. COGS = (Beg-End)*Value Each
A3: Product | B3: Beginning Quantity | C3: End Quantity | D3: Value Each | E3: COGS
A4: Aspen | B4: 42 | C4: 0 | D4: 12.33
A5: Quad | B5: 239 | C5: 178 | D5: 21.37
A6: Carlota | B6: 174 | C6: 81 | D6: 14.87
A7: Bellen | B7: 136 | C7: 42 | D7: 13.65
A8: Sunset | B8: 194 | C8: 96 | D8: 12.82
D10: ** There are no extraneous pennies, so we do not need to use the ROUND Function.

Sheet HW(1an)
A1: Goal: Calculate Cost of Goods Sold (COGS) in Accounting. COGS = (Beg-End)*Value Each
A3: Product | B3: Beginning Quantity | C3: End Quantity | D3: Value Each | E3: COGS
A4: Aspen | B4: 42 | C4: 0 | D4: 12.33 | E4: =(B4-C4)*D4 -> 517.86
A5: Quad | B5: 239 | C5: 178 | D5: 21.37 | E5: 1303.57
A6: Carlota | B6: 174 | C6: 81 | D6: 14.87 | E6: 1382.91
A7: Bellen | B7: 136 | C7: 42 | D7: 13.65 | E7: 1283.1
A8: Sunset | B8: 194 | C8: 96 | D8: 12.82 | E8: 1256.36
D10: ** There are no extraneous pennies, so we do not need to use the ROUND Function.

Sheet HW(2)
A1: Goal: Join First & Last Names into One Cell using a formula.
A3: First Name | B3: Last Name | C3: Full Name
A4: Coralie | B4: Land
A5: Anjanette | B5: Pickett
A6: Mellie | B6: Berube
A7: Georgene | B7: Haight
A8: Billi | B8: Smalls
A9: Jacqulyn | B9: Jefferies
A10: Nathanial | B10: Church
A11: Leonia | B11: Otero
A12: Marquita | B12: Vance
A13: Mireille | B13: Laney
A14: Haydee | B14: Peralta
A15: Jenelle | B15: Messer
A16: Mason | B16: Mclean
A17: Lidia | B17: Wylie
A18: Darius | B18: Blackman
A19: Lilli | B19: Benefield
A20: Trisha | B20: Warden
A21: Alexander | B21: Dugas
A22: Imogene | B22: South
A23: Margarito | B23: Tinsley
A24: Augustina | B24: Williford
A25: Nanette | B25: Pettit
A26: Brianne | B26: Yoo
A27: Angla | B27: Zhang
A28: Kayleigh | B28: Towns
A29: Calista | B29: Shelby
A30: Freddie | B30: Houghton
A31: Bernardina | B31: Mireles
A32: Odell | B32: Doran
A33: Darlena | B33: Blodgett
A34: Von | B34: Spence
A35: Mike | B35: Redmon
A36: Bea | B36: Burnette
A37: Lesley | B37: Crider
A38: Jerilyn | B38: Muse
A39: Mary | B39: Teague
A40: Elenor | B40: Toro
A41: Zella | B41: Crutcher
A42: Carmelita | B42: Myrick
A43: Jone | B43: Reece
A44: Sharita | B44: Mcgregor
A45: Lesa | B45: Dillon
A46: Nicolle | B46: Campos
A47: Angeline | B47: Snow
A48: Cornelia | B48: Dehart
A49: Jerrod | B49: Zavala
A50: Donnie | B50: Manley
A51: Selma | B51: Pridgen
A52: Lia | B52: Homan
A53: Merissa | B53: Earl

Sheet HW(2an)
A1: Goal: Join First & Last Names into One Cell using a formula.
A3: First Name | B3: Last Name | C3: Full Name
A4: Coralie | B4: Land | C4: =A4&" "&B4 -> Coralie Land
A5: Anjanette | B5: Pickett | C5: =A5&" "&B5 -> Anjanette Pickett
A6: Mellie | B6: Berube | C6: Mellie Berube
A7: Georgene | B7: Haight | C7: Georgene Haight
A8: Billi | B8: Smalls | C8: Billi Smalls
A9: Jacqulyn | B9: Jefferies | C9: Jacqulyn Jefferies
A10: Nathanial | B10: Church | C10: Nathanial Church
A11: Leonia | B11: Otero | C11: Leonia Otero
A12: Marquita | B12: Vance | C12: Marquita Vance
A13: Mireille | B13: Laney | C13: Mireille Laney
A14: Haydee | B14: Peralta | C14: Haydee Peralta
A15: Jenelle | B15: Messer | C15: Jenelle Messer
A16: Mason | B16: Mclean | C16: Mason Mclean
A17: Lidia | B17: Wylie | C17: Lidia Wylie
A18: Darius | B18: Blackman | C18: Darius Blackman
A19: Lilli | B19: Benefield | C19: Lilli Benefield
A20: Trisha | B20: Warden | C20: Trisha Warden
A21: Alexander | B21: Dugas | C21: Alexander Dugas
A22: Imogene | B22: South | C22: Imogene South
A23: Margarito | B23: Tinsley | C23: Margarito Tinsley
A24: Augustina | B24: Williford | C24: Augustina Williford
A25: Nanette | B25: Pettit | C25: Nanette Pettit
A26: Brianne | B26: Yoo | C26: Brianne Yoo
A27: Angla | B27: Zhang | C27: Angla Zhang
A28: Kayleigh | B28: Towns | C28: Kayleigh Towns
A29: Calista | B29: Shelby | C29: Calista Shelby
A30: Freddie | B30: Houghton | C30: Freddie Houghton
A31: Bernardina | B31: Mireles | C31: Bernardina Mireles
A32: Odell | B32: Doran | C32: Odell Doran
A33: Darlena | B33: Blodgett | C33: Darlena Blodgett
A34: Von | B34: Spence | C34: Von Spence
A35: Mike | B35: Redmon | C35: Mike Redmon
A36: Bea | B36: Burnette | C36: Bea Burnette
A37: Lesley | B37: Crider | C37: Lesley Crider
A38: Jerilyn | B38: Muse | C38: Jerilyn Muse
A39: Mary | B39: Teague | C39: Mary Teague
A40: Elenor | B40: Toro | C40: Elenor Toro
A41: Zella | B41: Crutcher | C41: Zella Crutcher
A42: Carmelita | B42: Myrick | C42: Carmelita Myrick
A43: Jone | B43: Reece | C43: Jone Reece
A44: Sharita | B44: Mcgregor | C44: Sharita Mcgregor
A45: Lesa | B45: Dillon | C45: Lesa Dillon
A46: Nicolle | B46: Campos | C46: Nicolle Campos
A47: Angeline | B47: Snow | C47: Angeline Snow
A48: Cornelia | B48: Dehart | C48: Cornelia Dehart
A49: Jerrod | B49: Zavala | C49: Jerrod Zavala
A50: Donnie | B50: Manley | C50: Donnie Manley
A51: Selma | B51: Pridgen | C51: Selma Pridgen
A52: Lia | B52: Homan | C52: Lia Homan
A53: Merissa | B53: Earl | C53: Merissa Earl

Sheet HW(3)
A1: ="Goal: Determine If Employee Gets a Bonus by creating a formula that delivers a TRUE if their Sales are greater than "&DOLLAR(E4,0)&"." -> Goal: Determine If Employee Gets a Bonus by creating a formula that delivers a TRUE if their Sales are greater than $275,000.
A3: Employee | B3: Sales | C3: Do they Get Bonus? | E3: Hurdle to Get Bonus
A4: Rufina Gaylord | B4: 518255.4 | E4: 275000
A5: Logan Jett | B5: 201697.4
A6: Rina Kilpatrick | B6: 183485
A7: Dakota Mcclain | B7: 375968.3
A8: Elfreda Lundy | B8: 279628.4
A9: Tia Briseno | B9: 462232.3
A10: Rochell Ulrich | B10: 370787.8
A11: Rosana Alcala | B11: 260098.7
A12: Deedee Ledoux | B12: 461327
A13: Dalia Monk | B13: 386667.3
A14: Xavier Lozano | B14: 220681
A15: Raina Hollis | B15: 195685.1
A16: Lajuana Meier | B16: 161110
A17: Willian Puckett | B17: 460737.4
A18: Adaline Glass | B18: 418287.5
A19: Gaylord Forbes | B19: 173385.2
A20: Miles Tuggle | B20: 315896.8
A21: Candra Montalvo | B21: 414279.1
A22: Roxann Lindstrom | B22: 228288.9
A23: Karon Bivens | B23: 467344.7
A24: Jannet Putman | B24: 480070.8
A25: Kenisha Bingham | B25: 372549.5
A26: Sharlene Dobson | B26: 499725.4
A27: Toshia Wilbanks | B27: 195820
A28: Jude Fielder | B28: 328958
A29: Kelsey Rupp | B29: 505408
A30: Rebbecca Kay | B30: 268865.8
A31: Neely Furman | B31: 446130.4
A32: Edyth Spaulding | B32: 492634.3
A33: Eugene Felix | B33: 175036.3
A34: Layla Samson | B34: 210474.6
A35: Luann Mathews | B35: 171539.5
A36: Brendon Harkins | B36: 201733.5
A37: Russel Waller | B37: 393559
A38: Vincenzo Steadman | B38: 394131.6
A39: Eldon Heffner | B39: 325929.7
A40: Theo Arroyo | B40: 500054.6
A41: Antionette Dunaway | B41: 144362.8
A42: Dusty Frias | B42: 480052.7
A43: Yen Marcus | B43: 346188.7
A44: Fanny Wiggins | B44: 204883.6
A45: Quyen Westbrook | B45: 223180.6
A46: Jae Navarro | B46: 270623.8
A47: Madeleine Vickery | B47: 443911.7
A48: Florance Lemmon | B48: 184445.3
A49: Gillian Ferraro | B49: 194937.9
A50: Sherika Woodcock | B50: 392699.1
A51: Shavonne Fitts | B51: 265833.8
A52: Marisela Story | B52: 250453.7
A53: Sondra Word | B53: 395043.5

Sheet HW(3an)
A1: ="Goal: Determine If Employee Gets a Bonus by creating a formula that delivers a TRUE if their Sales are greater than "&DOLLAR(E4,0)&"." -> Goal: Determine If Employee Gets a Bonus by creating a formula that delivers a TRUE if their Sales are greater than $275,000.
A3: Employee | B3: Sales | C3: Do they Get Bonus? | E3: Hurdle to Get Bonus
A4: Rufina Gaylord | B4: 518255.4 | C4: =B4>$E$4 -> TRUE | E4: 275000
A5: Logan Jett | B5: 201697.4 | C5: =B5>$E$4 -> FALSE
A6: Rina Kilpatrick | B6: 183485 | C6: FALSE
A7: Dakota Mcclain | B7: 375968.3 | C7: TRUE
A8: Elfreda Lundy | B8: 279628.4 | C8: TRUE
A9: Tia Briseno | B9: 462232.3 | C9: TRUE
A10: Rochell Ulrich | B10: 370787.8 | C10: TRUE
A11: Rosana Alcala | B11: 260098.7 | C11: FALSE
A12: Deedee Ledoux | B12: 461327 | C12: TRUE
A13: Dalia Monk | B13: 386667.3 | C13: TRUE
A14: Xavier Lozano | B14: 220681 | C14: FALSE
A15: Raina Hollis | B15: 195685.1 | C15: FALSE
A16: Lajuana Meier | B16: 161110 | C16: FALSE
A17: Willian Puckett | B17: 460737.4 | C17: TRUE
A18: Adaline Glass | B18: 418287.5 | C18: TRUE
A19: Gaylord Forbes | B19: 173385.2 | C19: FALSE
A20: Miles Tuggle | B20: 315896.8 | C20: TRUE
A21: Candra Montalvo | B21: 414279.1 | C21: TRUE
A22: Roxann Lindstrom | B22: 228288.9 | C22: FALSE
A23: Karon Bivens | B23: 467344.7 | C23: TRUE
A24: Jannet Putman | B24: 480070.8 | C24: TRUE
A25: Kenisha Bingham | B25: 372549.5 | C25: TRUE
A26: Sharlene Dobson | B26: 499725.4 | C26: TRUE
A27: Toshia Wilbanks | B27: 195820 | C27: FALSE
A28: Jude Fielder | B28: 328958 | C28: TRUE
A29: Kelsey Rupp | B29: 505408 | C29: TRUE
A30: Rebbecca Kay | B30: 268865.8 | C30: FALSE
A31: Neely Furman | B31: 446130.4 | C31: TRUE
A32: Edyth Spaulding | B32: 492634.3 | C32: TRUE
A33: Eugene Felix | B33: 175036.3 | C33: FALSE
A34: Layla Samson | B34: 210474.6 | C34: FALSE
A35: Luann Mathews | B35: 171539.5 | C35: FALSE
A36: Brendon Harkins | B36: 201733.5 | C36: FALSE
A37: Russel Waller | B37: 393559 | C37: TRUE
A38: Vincenzo Steadman | B38: 394131.6 | C38: TRUE
A39: Eldon Heffner | B39: 325929.7 | C39: TRUE
A40: Theo Arroyo | B40: 500054.6 | C40: TRUE
A41: Antionette Dunaway | B41: 144362.8 | C41: FALSE
A42: Dusty Frias | B42: 480052.7 | C42: TRUE
A43: Yen Marcus | B43: 346188.7 | C43: TRUE
A44: Fanny Wiggins | B44: 204883.6 | C44: FALSE
A45: Quyen Westbrook | B45: 223180.6 | C45: FALSE
A46: Jae Navarro | B46: 270623.8 | C46: FALSE
A47: Madeleine Vickery | B47: 443911.7 | C47: TRUE
A48: Florance Lemmon | B48: 184445.3 | C48: FALSE
A49: Gillian Ferraro | B49: 194937.9 | C49: FALSE
A50: Sherika Woodcock | B50: 392699.1 | C50: TRUE
A51: Shavonne Fitts | B51: 265833.8 | C51: FALSE
A52: Marisela Story | B52: 250453.7 | C52: FALSE
A53: Sondra Word | B53: 395043.5 | C53: TRUE

Sheet HW(4)
A1: Remind yourself about how to add sales for each product by creating this report in two ways; 1) SUMIFS (you can use teplate provided below) and 2) a PivotTable.
A3: Date | B3: Employee | C3: Sales | D3: Product | F3: Product | G3: Total Sales
A4: 2017-10-28 | B4: Tia Briseno | C4: 46223.23 | D4: Quad | F4: Aspen
A5: 2017-10-27 | B5: Jude Fielder | C5: 32895.8 | D5: Carlota | F5: Bellen
A6: 2017-10-28 | B6: Luann Mathews | C6: 17153.95 | D6: Quad | F6: Carlota
A7: 2017-10-28 | B7: Quyen Westbrook | C7: 22318.06 | D7: Quad | F7: Quad
A8: 2017-10-28 | B8: Fanny Wiggins | C8: 20488.36 | D8: Bellen | F8: Sunset
A9: 2017-10-28 | B9: Sherika Woodcock | C9: 39269.91 | D9: Carlota
A10: 2017-10-28 | B10: Kenisha Bingham | C10: 37254.95 | D10: Aspen
A11: 2017-10-27 | B11: Tia Briseno | C11: 22828.89 | D11: Bellen
A12: 2017-10-28 | B12: Jude Fielder | C12: 26009.87 | D12: Bellen
A13: 2017-10-27 | B13: Luann Mathews | C13: 46734.47 | D13: Quad
A14: 2017-10-27 | B14: Quyen Westbrook | C14: 41427.91 | D14: Bellen
A15: 2017-10-29 | B15: Fanny Wiggins | C15: 32592.97 | D15: Carlota
A16: 2017-10-27 | B16: Sherika Woodcock | C16: 16111 | D16: Quad
A17: 2017-10-27 | B17: Kenisha Bingham | C17: 46073.74 | D17: Carlota
A18: 2017-10-28 | B18: Tia Briseno | C18: 22068.1 | D18: Aspen
A19: 2017-10-28 | B19: Jude Fielder | C19: 14436.28 | D19: Sunset
A20: 2017-10-28 | B20: Luann Mathews | C20: 20173.35 | D20: Aspen
A21: 2017-10-27 | B21: Quyen Westbrook | C21: 18444.53 | D21: Aspen
A22: 2017-10-27 | B22: Fanny Wiggins | C22: 27962.84 | D22: Sunset
A23: 2017-10-27 | B23: Sherika Woodcock | C23: 20169.74 | D23: Quad
A24: 2017-10-29 | B24: Kenisha Bingham | C24: 34618.87 | D24: Bellen
A25: 2017-10-29 | B25: Tia Briseno | C25: 31589.68 | D25: Quad
A26: 2017-10-27 | B26: Jude Fielder | C26: 19568.51 | D26: Aspen
A27: 2017-10-27 | B27: Luann Mathews | C27: 21047.46 | D27: Quad
A28: 2017-10-29 | B28: Quyen Westbrook | C28: 39355.9 | D28: Aspen
A29: 2017-10-29 | B29: Fanny Wiggins | C29: 51825.54 | D29: Aspen
A30: 2017-10-28 | B30: Sherika Woodcock | C30: 46132.7 | D30: Quad
A31: 2017-10-27 | B31: Kenisha Bingham | C31: 26886.58 | D31: Sunset
A32: 2017-10-29 | B32: Tia Briseno | C32: 19582 | D32: Quad
A33: 2017-10-29 | B33: Jude Fielder | C33: 26583.38 | D33: Bellen
A34: 2017-10-27 | B34: Luann Mathews | C34: 50005.46 | D34: Bellen
A35: 2017-10-28 | B35: Quyen Westbrook | C35: 39504.35 | D35: Quad
A36: 2017-10-28 | B36: Fanny Wiggins | C36: 27062.38 | D36: Quad
A37: 2017-10-27 | B37: Sherika Woodcock | C37: 37596.83 | D37: Bellen
A38: 2017-10-28 | B38: Kenisha Bingham | C38: 17503.63 | D38: Bellen
A39: 2017-10-29 | B39: Tia Briseno | C39: 44613.04 | D39: Quad
A40: 2017-10-28 | B40: Jude Fielder | C40: 37078.78 | D40: Bellen
A41: 2017-10-28 | B41: Luann Mathews | C41: 49263.43 | D41: Bellen
A42: 2017-10-28 | B42: Quyen Westbrook | C42: 48007.08 | D42: Quad
A43: 2017-10-28 | B43: Fanny Wiggins | C43: 48005.27 | D43: Quad
A44: 2017-10-27 | B44: Sherika Woodcock | C44: 17338.52 | D44: Sunset
A45: 2017-10-29 | B45: Kenisha Bingham | C45: 50540.8 | D45: Bellen
A46: 2017-10-27 | B46: Tia Briseno | C46: 18348.5 | D46: Carlota
A47: 2017-10-27 | B47: Jude Fielder | C47: 19493.79 | D47: Quad
A48: 2017-10-29 | B48: Luann Mathews | C48: 25045.37 | D48: Sunset
A49: 2017-10-29 | B49: Quyen Westbrook | C49: 38666.73 | D49: Quad
A50: 2017-10-28 | B50: Fanny Wiggins | C50: 41828.75 | D50: Bellen
A51: 2017-10-27 | B51: Sherika Woodcock | C51: 39413.16 | D51: Quad
A52: 2017-10-29 | B52: Kenisha Bingham | C52: 44391.17 | D52: Aspen
A53: 2017-10-28 | B53: Tia Briseno | C53: 49972.54 | D53: Aspen

Sheet HW(4an)
A1: Remind yourself about how to add sales for each product by creating this report in two ways; 1) SUMIFS (you can use teplate provided below) and 2) a PivotTable.
A3: Date | B3: Employee | C3: Sales | D3: Product | F3: Product | G3: Total Sales | I3: Product | J3: Sum of Sales
A4: 2017-10-28 | B4: Tia Briseno | C4: 46223.23 | D4: Quad | F4: Aspen | G4: =SUMIFS($C$4:$C$53,$D$4:$D$53,F4) -> 303054.59 | I4: Aspen | J4: 303054.59
A5: 2017-10-27 | B5: Jude Fielder | C5: 32895.8 | D5: Carlota | F5: Bellen | G5: =SUMIFS($C$4:$C$53,$D$4:$D$53,F5) -> 455774.96 | I5: Bellen | J5: 455774.96
A6: 2017-10-28 | B6: Luann Mathews | C6: 17153.95 | D6: Quad | F6: Carlota | G6: =SUMIFS($C$4:$C$53,$D$4:$D$53,F6) -> 169180.92 | I6: Carlota | J6: 169180.92
A7: 2017-10-28 | B7: Quyen Westbrook | C7: 22318.06 | D7: Quad | F7: Quad | G7: =SUMIFS($C$4:$C$53,$D$4:$D$53,F7) -> 591828.09 | I7: Quad | J7: 591828.09
A8: 2017-10-28 | B8: Fanny Wiggins | C8: 20488.36 | D8: Bellen | F8: Sunset | G8: =SUMIFS($C$4:$C$53,$D$4:$D$53,F8) -> 111669.59 | I8: Sunset | J8: 111669.59
A9: 2017-10-28 | B9: Sherika Woodcock | C9: 39269.91 | D9: Carlota | I9: Grand Total | J9: 1631508.15
A10: 2017-10-28 | B10: Kenisha Bingham | C10: 37254.95 | D10: Aspen
A11: 2017-10-27 | B11: Tia Briseno | C11: 22828.89 | D11: Bellen
A12: 2017-10-28 | B12: Jude Fielder | C12: 26009.87 | D12: Bellen
A13: 2017-10-27 | B13: Luann Mathews | C13: 46734.47 | D13: Quad
A14: 2017-10-27 | B14: Quyen Westbrook | C14: 41427.91 | D14: Bellen
A15: 2017-10-29 | B15: Fanny Wiggins | C15: 32592.97 | D15: Carlota
A16: 2017-10-27 | B16: Sherika Woodcock | C16: 16111 | D16: Quad
A17: 2017-10-27 | B17: Kenisha Bingham | C17: 46073.74 | D17: Carlota
A18: 2017-10-28 | B18: Tia Briseno | C18: 22068.1 | D18: Aspen
A19: 2017-10-28 | B19: Jude Fielder | C19: 14436.28 | D19: Sunset
A20: 2017-10-28 | B20: Luann Mathews | C20: 20173.35 | D20: Aspen
A21: 2017-10-27 | B21: Quyen Westbrook | C21: 18444.53 | D21: Aspen
A22: 2017-10-27 | B22: Fanny Wiggins | C22: 27962.84 | D22: Sunset
A23: 2017-10-27 | B23: Sherika Woodcock | C23: 20169.74 | D23: Quad
A24: 2017-10-29 | B24: Kenisha Bingham | C24: 34618.87 | D24: Bellen
A25: 2017-10-29 | B25: Tia Briseno | C25: 31589.68 | D25: Quad
A26: 2017-10-27 | B26: Jude Fielder | C26: 19568.51 | D26: Aspen
A27: 2017-10-27 | B27: Luann Mathews | C27: 21047.46 | D27: Quad
A28: 2017-10-29 | B28: Quyen Westbrook | C28: 39355.9 | D28: Aspen
A29: 2017-10-29 | B29: Fanny Wiggins | C29: 51825.54 | D29: Aspen
A30: 2017-10-28 | B30: Sherika Woodcock | C30: 46132.7 | D30: Quad
A31: 2017-10-27 | B31: Kenisha Bingham | C31: 26886.58 | D31: Sunset
A32: 2017-10-29 | B32: Tia Briseno | C32: 19582 | D32: Quad
A33: 2017-10-29 | B33: Jude Fielder | C33: 26583.38 | D33: Bellen
A34: 2017-10-27 | B34: Luann Mathews | C34: 50005.46 | D34: Bellen
A35: 2017-10-28 | B35: Quyen Westbrook | C35: 39504.35 | D35: Quad
A36: 2017-10-28 | B36: Fanny Wiggins | C36: 27062.38 | D36: Quad
A37: 2017-10-27 | B37: Sherika Woodcock | C37: 37596.83 | D37: Bellen
A38: 2017-10-28 | B38: Kenisha Bingham | C38: 17503.63 | D38: Bellen
A39: 2017-10-29 | B39: Tia Briseno | C39: 44613.04 | D39: Quad
A40: 2017-10-28 | B40: Jude Fielder | C40: 37078.78 | D40: Bellen
A41: 2017-10-28 | B41: Luann Mathews | C41: 49263.43 | D41: Bellen
A42: 2017-10-28 | B42: Quyen Westbrook | C42: 48007.08 | D42: Quad
A43: 2017-10-28 | B43: Fanny Wiggins | C43: 48005.27 | D43: Quad
A44: 2017-10-27 | B44: Sherika Woodcock | C44: 17338.52 | D44: Sunset
A45: 2017-10-29 | B45: Kenisha Bingham | C45: 50540.8 | D45: Bellen
A46: 2017-10-27 | B46: Tia Briseno | C46: 18348.5 | D46: Carlota
A47: 2017-10-27 | B47: Jude Fielder | C47: 19493.79 | D47: Quad
A48: 2017-10-29 | B48: Luann Mathews | C48: 25045.37 | D48: Sunset
A49: 2017-10-29 | B49: Quyen Westbrook | C49: 38666.73 | D49: Quad
A50: 2017-10-28 | B50: Fanny Wiggins | C50: 41828.75 | D50: Bellen
A51: 2017-10-27 | B51: Sherika Woodcock | C51: 39413.16 | D51: Quad
A52: 2017-10-29 | B52: Kenisha Bingham | C52: 44391.17 | D52: Aspen
A53: 2017-10-28 | B53: Tia Briseno | C53: 49972.54 | D53: Aspen

Sheet HW(5)
A1: Goal: Extract zip code using a formula.
A3: Addresses | B3: Zip
A4: 41 Jackson Drive , Wasilla, AK 99654
A5: 100 Albany St. , Pueblo, CO 81001
A6: 9600 Devon Court , Houston, TX 77016
A7: 24 Beach Street , Mount Holly, NJ 08060
A8: 26 Miller Drive , Manassas, VA 20109
A9: 8154 North Maple Street , Fayetteville, NC 28303
A10: 8089 Ann Lane , Apex, NC 27502
A11: 944 Peninsula Street , New Rochelle, NY 10801
A12: 375 Virginia Avenue , West Des Moines, IA 50265
A13: 4 Edgewood Street , Jamestown, NY 14701
A14: 7869 East Peachtree Road , Hicksville, NY 11801
A15: 202 Columbia Drive , Torrance, CA 90505
A16: 561 West Lakeview Ave. , Bardstown, KY 40004
A17: 992 West Street , North Haven, CT 06473
A18: 7 Devon St. , Clifton, NJ 07011
A19: 186 Cardinal Dr. , Anderson, SC 29621
A20: 23 Lincoln Street , Libertyville, IL 60048
A21: 43 S. Franklin Ave. , Coventry, RI 02816
A22: 283 Briarwood Street , Mokena, IL 60448
A23: 17 Franklin Ave. , Winchester, VA 22601
A24: 65 Big Rock Cove Avenue , Hamilton, OH 45011
A25: 8274 Pleasant Dr. , Voorhees, NJ 08043
A26: 468 Pierce St. , Waterbury, CT 06705
A27: 94 North Liberty St. , Lilburn, GA 30047
A28: 515 Adams Street , Athens, GA 30605
A29: 97 Sherwood Street , Dalton, GA 30721
A30: 287 Armstrong Drive , Boynton Beach, FL 33435
A31: 32 Old Main St. , Sidney, OH 45365
A32: 7936 Durham St. , Antioch, TN 37013
A33: 7346 Bald Hill Street , Norfolk, VA 23503
A34: 8878 N. Mayflower Street , Zanesville, OH 43701
A35: 629 Ridge Dr. , Bettendorf, IA 52722
A36: 319 Magnolia St. , Langhorne, PA 19047
A37: 78 Homewood St. , Flowery Branch, GA 30542
A38: 25 East Liberty Ave. , Vienna, VA 22180
A39: 181 Halifax St. , Johnson City, TN 37601
A40: 956 Gonzales Lane , East Northport, NY 11731
A41: 31 Old Dunbar Ave. , Woodstock, GA 30188
A42: 9184 Harrison Dr. , Palm City, FL 34990
A43: 654 South Glendale Drive , Stamford, CT 06902
A44: 7442 Devon Drive , Perth Amboy, NJ 08861
A45: 814 Birchwood Avenue , Absecon, NJ 08205
A46: 356 Vine Dr. , Cheshire, CT 06410
A47: 51 South Mayfair St. , Atlanta, GA 30303
A48: 597 Meadow Street , Canal Winchester, OH 43110
A49: 89 E. Rockaway St. , Wethersfield, CT 06109
A50: 321 Princeton Dr. , Alpharetta, GA 30004
A51: 8842 Fieldstone St. , Naugatuck, CT 06770
A52: 36 Birchwood Rd. , Montgomery, AL 36109
A53: 640 Sulphur Springs St. , Lorain, OH 44052

Sheet HW(5an)
A1: Goal: Extract zip code using a formula.
A3: Addresses | B3: Zip
A4: 41 Jackson Drive , Wasilla, AK 99654 | B4: =RIGHT(A4,5) -> 99654
A5: 100 Albany St. , Pueblo, CO 81001 | B5: =RIGHT(A5,5) -> 81001
A6: 9600 Devon Court , Houston, TX 77016 | B6: 77016
A7: 24 Beach Street , Mount Holly, NJ 08060 | B7: 08060
A8: 26 Miller Drive , Manassas, VA 20109 | B8: 20109
A9: 8154 North Maple Street , Fayetteville, NC 28303 | B9: 28303
A10: 8089 Ann Lane , Apex, NC 27502 | B10: 27502
A11: 944 Peninsula Street , New Rochelle, NY 10801 | B11: 10801
A12: 375 Virginia Avenue , West Des Moines, IA 50265 | B12: 50265
A13: 4 Edgewood Street , Jamestown, NY 14701 | B13: 14701
A14: 7869 East Peachtree Road , Hicksville, NY 11801 | B14: 11801
A15: 202 Columbia Drive , Torrance, CA 90505 | B15: 90505
A16: 561 West Lakeview Ave. , Bardstown, KY 40004 | B16: 40004
A17: 992 West Street , North Haven, CT 06473 | B17: 06473
A18: 7 Devon St. , Clifton, NJ 07011 | B18: 07011
A19: 186 Cardinal Dr. , Anderson, SC 29621 | B19: 29621
A20: 23 Lincoln Street , Libertyville, IL 60048 | B20: 60048
A21: 43 S. Franklin Ave. , Coventry, RI 02816 | B21: 02816
A22: 283 Briarwood Street , Mokena, IL 60448 | B22: 60448
A23: 17 Franklin Ave. , Winchester, VA 22601 | B23: 22601
A24: 65 Big Rock Cove Avenue , Hamilton, OH 45011 | B24: 45011
A25: 8274 Pleasant Dr. , Voorhees, NJ 08043 | B25: 08043
A26: 468 Pierce St. , Waterbury, CT 06705 | B26: 06705
A27: 94 North Liberty St. , Lilburn, GA 30047 | B27: 30047
A28: 515 Adams Street , Athens, GA 30605 | B28: 30605
A29: 97 Sherwood Street , Dalton, GA 30721 | B29: 30721
A30: 287 Armstrong Drive , Boynton Beach, FL 33435 | B30: 33435
A31: 32 Old Main St. , Sidney, OH 45365 | B31: 45365
A32: 7936 Durham St. , Antioch, TN 37013 | B32: 37013
A33: 7346 Bald Hill Street , Norfolk, VA 23503 | B33: 23503
A34: 8878 N. Mayflower Street , Zanesville, OH 43701 | B34: 43701
A35: 629 Ridge Dr. , Bettendorf, IA 52722 | B35: 52722
A36: 319 Magnolia St. , Langhorne, PA 19047 | B36: 19047
A37: 78 Homewood St. , Flowery Branch, GA 30542 | B37: 30542
A38: 25 East Liberty Ave. , Vienna, VA 22180 | B38: 22180
A39: 181 Halifax St. , Johnson City, TN 37601 | B39: 37601
A40: 956 Gonzales Lane , East Northport, NY 11731 | B40: 11731
A41: 31 Old Dunbar Ave. , Woodstock, GA 30188 | B41: 30188
A42: 9184 Harrison Dr. , Palm City, FL 34990 | B42: 34990
A43: 654 South Glendale Drive , Stamford, CT 06902 | B43: 06902
A44: 7442 Devon Drive , Perth Amboy, NJ 08861 | B44: 08861
A45: 814 Birchwood Avenue , Absecon, NJ 08205 | B45: 08205
A46: 356 Vine Dr. , Cheshire, CT 06410 | B46: 06410
A47: 51 South Mayfair St. , Atlanta, GA 30303 | B47: 30303
A48: 597 Meadow Street , Canal Winchester, OH 43110 | B48: 43110
A49: 89 E. Rockaway St. , Wethersfield, CT 06109 | B49: 06109
A50: 321 Princeton Dr. , Alpharetta, GA 30004 | B50: 30004
A51: 8842 Fieldstone St. , Naugatuck, CT 06770 | B51: 06770
A52: 36 Birchwood Rd. , Montgomery, AL 36109 | B52: 36109
A53: 640 Sulphur Springs St. , Lorain, OH 44052 | B53: 44052
